{"text_format":"1","workbook":"xlsx","n_sheets":1,"sheets":["Cronómetro"],"not_rendered":{"charts":0,"images":0,"macros":1,"external_links":0,"defined_names":0,"comments":0,"pivot_tables":0},"unopened":[],"bounds":{"document_bytes":16777216,"sheet_cells":100000,"rows_first":2000,"rows_last":500,"rows_between":2000,"halvings":0,"cell_chars":16384,"cell_head_chars":4096},"cells_cut":0,"cells_raw":0,"read":"whole","date_system":"1900"}

{"sheet":"Cronómetro","index":0,"n_rows":31,"n_cols":17,"rows_kept":31,"cut":false,"hidden":false,"merged":[]}
[]
[]
[]
[null,null,null,null,null,"Segundos"]
[null,null,null,null,null,26]
[null,null,null,null,"Minuto","Segundo",null,null,"TIPO DE CLIENTE","T","TIEMPO DE LLEGADA",null,"T","Px"]
[null,null,null,null,{"$f":"+ROUNDDOWN(F5/60,0)","v":0},{"$f":"+F5-E7*60","v":26},null,null,null,null,0,null,null,0.08,null,1,{"$f":"1/12","v":8.3333333333333329E-2}]
[null,null,null,null,null,null,1,"Cliente 1",8,42,{"$f":"+K7+J8","v":42},null,{"$f":"+M7+1","v":1},0.08,null,2,{"$f":"1/12","v":8.3333333333333329E-2}]
[null,null,null,null,null,null,2,"Cliente 2",9,29,{"$f":"+K8+J9","v":71},null,{"$f":"+M8+1","v":2},0.06,null,3,8.3333333333333329E-2]
[null,null,null,null,null,null,3,"Cliente 3",1,25,96,null,3,0.06,null,4,8.3333333333333329E-2]
[null,null,null,null,null,null,4,"Cliente 4",5,25,121,null,4,0.06,null,5,8.3333333333333329E-2]
[null,null,null,null,null,null,5,"Cliente 5",7,37,158,null,5,0.06,null,6,8.3333333333333329E-2]
[null,null,null,null,null,null,6,"Cliente 6",4,20,178,null,6,0.06,null,7,8.3333333333333329E-2]
[null,null,null,null,null,null,7,"Cliente 7",7,36,214,null,7,0.02,null,8,8.3333333333333329E-2]
[null,null,null,null,null,null,8,"Cliente 8",9,29,243,null,8,0.01,null,9,8.3333333333333329E-2]
[null,null,null,null,null,null,9,"Cliente 9",4,26,269,null,9,0.01,null,10,8.3333333333333329E-2]
[null,null,null,null,null,null,10,"Cliente 10",11,27,296,null,10,0.01,null,11,8.3333333333333329E-2]
[null,null,null,null,null,null,11,"Cliente 11",8,25,321,null,11,0.01,null,12,8.3333333333333329E-2]
[null,null,null,null,null,null,12,"Cliente 12",6,30,351,null,12,0.01]
[null,null,null,null,null,null,null,null,null,null,null,null,13,0.01]
[null,null,null,null,null,null,null,null,null,null,null,null,14,0.01]
[null,null,null,null,null,null,null,null,null,null,null,null,15,0.01]
[null,null,null,null,null,null,null,null,null,null,null,null,16,0.01]
[null,null,null,null,null,null,null,null,null,null,null,null,17,0.01]
[null,null,null,null,null,null,null,null,null,null,null,null,18,0.02]
[null,null,null,null,null,null,null,null,null,null,null,null,19,0.06]
[null,null,null,null,null,null,null,null,null,null,null,null,20,0.06]
[null,null,null,null,null,null,null,null,null,null,null,null,21,0.06]
[null,null,null,null,null,null,null,null,null,null,null,null,22,0.06]
[null,null,null,null,null,null,null,null,null,null,null,null,23,0.08]
[null,null,null,null,null,null,null,null,null,null,null,null,24,0.08]